[Event "GER-ch Youth U10 2020"]
[Site "Willingen"]
[Date "2020.10.30"]
[Round "6.11"]
[White "Thümler, Floris"]
[Black "Braun, Julian"]
[Result "0-1"]
[ECO "B53"]
[WhiteElo "1295"]
[BlackElo "1441"]
[Annotator "NA RC"]
[PlyCount "118"]
[EventDate "2020.10.27"]
[EventType "swiss"]
[EventRounds "7"]
[EventCountry "GER"]
[SourceTitle "playchess.com"]
[Source "ChessBase"]
[SourceQuality "1"]
[TimeControl "40/4500+30:900+30"]

1. e4 {[%emt 0:00:00]} c5 {[%emt 0:00:00]} 2. Nf3 {[%emt 0:00:04]} d6 {[%emt 0:00:00]} 3. d4 {[%emt 0:00:39]} cxd4 {[%emt 0:00:00]} 4. Qxd4 {[%emt 0:00:41]} Nf6 {[%emt 0:00:00]} 5. Bg5 {[%emt 0:00:57]} Nc6 {[%emt 0:00:03]} 6. Bb5 {[%emt 0:00:46]} Bd7 {[%emt 0:00:21]} 7. Bxc6 {[%emt 0:00:44]} bxc6 {[%emt 0:00:09]} 8. c4 {[%emt 0:00:42]} e5 {[%emt 0:02:26]} 9. Qd3 {[%emt 0:00:51]} h6 {[%emt 0:00:13]} 10. Be3 {[%emt 0:03:16]} Be6 {[%emt 0:02:30]} 11. Nc3 {[%emt 0:02:30]} Be7 {[%emt 0:01:25]} 12. O-O-O {[%emt 0:02:12]} Nd7 {[%emt 0:02:33]} 13. Rd2 {[%emt 0:02:06]} Nb6 {[%emt 0:02:39]} 14. b3 {[%emt 0:01:34]} O-O {[%emt 0:01:06]} 15. Rhd1 {[%emt 0:01:28]} Qc7 {[%emt 0:01:46]} 16. Qe2 {[%emt 0:08:06]} Rfd8 {[%emt 0:06:24]} 17. Ne1 {[%emt 0:09:09]} a5 {[%emt 0:10:04]} 18. Nd3 {[%emt 0:01:31]} Rab8 {[%emt 0:11:31]} 19. Qf3 {[%emt 0:05:37]} Nd7 {[%emt 0:16:53]} 20. g4 {[%emt 0:05:34]} d5 {[%emt 0:02:58]} 21. exd5 {[%emt 0:03:08]} cxd5 {[%emt 0:00:31]} 22. Nxd5 {[%emt 0:01:00]} Bxd5 {[%emt 0:01:59]} 23. Qxd5 {[%emt 0:01:33]} Nc5 {[%emt 0:01:58]} 24. Qf3 {[%emt 0:04:19]} e4 {[%emt 0:00:49]} 25. Qg3 {[%emt 0:02:06]} Qxg3 {[%emt 0:00:48]} 26. hxg3 {[%emt 0:02:47]} Nxd3+ {[%emt 0:00:57]} 27. Kc2 {[%emt 0:01:28]} Ne5 {[%emt 0:05:10]} 28. Bf4 {[%emt 0:01:50]} Rxd2+ {[%emt 0:03:29]} 29. Rxd2 {[%emt 0:01:10]} Bf6 {[%emt 0:00:58]} 30. Rd5 {[%emt 0:02:17]} Re8 {[%emt 0:00:46]} 31. Bxe5 {[%emt 0:03:02]} Rxe5 {[%emt 0:00:37]} 32. Rxe5 {[%emt 0:00:57]} Bxe5 {[%emt 0:00:01]} 33. c5 {[%emt 0:00:30]} Kf8 {[%emt 0:00:18]} 34. a3 {[%emt 0:00:50]} Ke7 {[%emt 0:03:06]} 35. b4 {[%emt 0:01:34]} axb4 {[%emt 0:00:48]} 36. axb4 {[%emt 0:00:29]} Kd7 {[%emt 0:01:03]} 37. Kd2 {[%emt 0:02:18]} Bd4 {[%emt 0:01:06]} 38. Ke2 {[%emt 0:01:55]} Kc6 {[%emt 0:00:15]} 39. f3 {[%emt 0:00:11]} exf3+ {[%emt 0:01:07]} 40. Kxf3 {[%emt 0:01:30]} Bc3 {[%emt 0:02:07]} 41. Kf4 {[%emt 0:17:59]} Bxb4 {[%emt 0:15:47]} 42. Kf5 {[%emt 0:05:50]} Bd2 {[%emt 0:00:59]} 43. Ke4 {[%emt 0:00:00]} Kxc5 {[%emt 0:00:00]} 44. Ke5 {[%emt 0:00:00]} Be1 {[%emt 0:00:00]} 45. Kf4 {[%emt 0:00:00]} Kd4 {[%emt 0:00:00]} 46. Kf3 {[%emt 0:00:00]} Ke5 {[%emt 0:00:00]} 47. Kg2 {[%emt 0:00:00]} Ke4 {[%emt 0:00:00]} 48. Kh2 {[%emt 0:01:10]} Kf3 {[%emt 0:00:00]} 49. Kh1 Kxg3 50. Kg1 {[%emt 0:02:08]} Kxg4 {[%emt 0:00:00]} 51. Kf1 {[%emt 0:00:15]} Kf3 {[%emt 0:00:00]} 52. Kg1 {[%emt 0:01:26]} Ke2 {[%emt 0:00:00]} 53. Kg2 {[%emt 0:01:20]} f5 {[%emt 0:00:00]} 54. Kg1 {[%emt 0:01:03]} f4 {[%emt 0:00:00]} 55. Kg2 {[%emt 0:00:27]} f3+ {[%emt 0:00:00]} 56. Kg1 {[%emt 0:00:29]} f2+ {[%emt 0:00:00]} 57. Kh2 {[%emt 0:00:06]} Kf3 {[%emt 0:00:00]} 58. Kh3 {[%emt 0:02:34]} f1=Q+ {[%emt 0:00:00]} 59. Kh2 {[%emt 0:00:50]} Qg2# 0-1

[Event "GER-ch Youth U10 2020"]
[Site "Willingen"]
[Date "2020.10.30"]
[Round "6.12"]
[White "Krstovic, Marko"]
[Black "Herrmann, Arthur"]
[Result "1-0"]
[ECO "E20"]
[WhiteElo "1443"]
[BlackElo "1151"]
[Annotator "NA RC"]
[PlyCount "95"]
[EventDate "2020.10.27"]
[EventType "swiss"]
[EventRounds "7"]
[EventCountry "GER"]
[SourceTitle "playchess.com"]
[Source "ChessBase"]
[SourceQuality "1"]
[TimeControl "40/4500+30:900+30"]

1. d4 {[%emt 0:00:00]} Nf6 {[%emt 0:00:00]} 2. c4 {[%emt 0:00:00]} e6 {[%emt 0:00:00]} 3. Nc3 {[%emt 0:00:00]} Bb4 {[%emt 0:00:00]} 4. f3 {[%emt 0:00:00]} O-O {[%emt 0:00:00]} 5. a3 {[%emt 0:00:00]} Bxc3+ {[%emt 0:00:15]} 6. bxc3 {[%emt 0:00:01]} d6 {[%emt 0:01:05]} 7. e3 {[%emt 0:00:45]} Nbd7 {[%emt 0:00:30]} 8. Bd3 {[%emt 0:00:07]} b6 {[%emt 0:00:49]} 9. Ne2 {[%emt 0:00:06]} Bb7 {[%emt 0:00:13]} 10. Ng3 {[%emt 0:00:09]} c5 {[%emt 0:01:04]} 11. Bb2 {[%emt 0:00:20]} Qc7 {[%emt 0:00:49]} 12. O-O {[%emt 0:00:20]} Rfe8 {[%emt 0:01:07]} 13. Qc2 {[%emt 0:00:11]} h6 {[%emt 0:01:37]} 14. Rae1 {[%emt 0:00:06]} Rac8 {[%emt 0:01:22]} 15. e4 {[%emt 0:02:17]} cxd4 {[%emt 0:03:23]} 16. cxd4 {[%emt 0:00:22]} Ba6 {[%emt 0:02:34]} 17. Rc1 {[%emt 0:00:50]} Red8 {[%emt 0:04:22]} 18. Rfd1 {[%emt 0:01:00]} b5 {[%emt 0:06:26]} 19. cxb5 {[%emt 0:00:41]} Qxc2 {[%emt 0:00:26]} 20. Rxc2 {[%emt 0:00:41]} Rxc2 {[%emt 0:00:11]} 21. Bxc2 {[%emt 0:00:13]} Bxb5 {[%emt 0:00:28]} 22. Rb1 {[%emt 0:00:42]} Rb8 {[%emt 0:10:00]} 23. d5 {[%emt 0:02:49]} Bc4 {[%emt 0:02:12]} 24. dxe6 {[%emt 0:00:21]} fxe6 {[%emt 0:00:44]} 25. Bd4 {[%emt 0:01:09]} Rxb1+ {[%emt 0:01:33]} 26. Bxb1 {[%emt 0:00:15]} Nb6 {[%emt 0:03:56]} 27. Kf2 {[%emt 0:00:54]} Kf7 {[%emt 0:01:05]} 28. Ke3 {[%emt 0:00:14]} Ke7 {[%emt 0:02:31]} 29. Kd2 {[%emt 0:00:06]} Kf7 {[%emt 0:09:32]} 30. Kc3 {[%emt 0:00:18]} Nfd7 {[%emt 0:03:14]} 31. Bd3 {[%emt 0:01:21]} Bxd3 {[%emt 0:00:52]} 32. Kxd3 {[%emt 0:00:42]} a5 {[%emt 0:05:18]} 33. Ne2 {[%emt 0:00:48]} e5 {[%emt 0:01:41]} 34. Be3 {[%emt 0:00:32]} h5 {[%emt 0:01:55]} 35. Nc3 {[%emt 0:00:08]} Ke7 {[%emt 0:02:44]} 36. Bxb6 {[%emt 0:00:08]} Nxb6 {[%emt 0:00:12]} 37. Nd5+ {[%emt 0:00:06]} Nxd5 38. exd5 {[%emt 0:00:06]} a4 {[%emt 0:01:19]} 39. Kc4 {[%emt 0:00:05]} Kd7 {[%emt 0:03:50]} 40. Kb5 {[%emt 0:00:08]} Kc7 {[%emt 0:00:10]} 41. Kxa4 {[%emt 0:15:11]} Kb6 {[%emt 0:15:29]} 42. Kb4 {[%emt 0:00:08]} h4 {[%emt 0:00:35]} 43. g3 {[%emt 0:00:32]} hxg3 {[%emt 0:00:53]} 44. hxg3 {[%emt 0:00:41]} g6 {[%emt 0:00:59]} 45. g4 {[%emt 0:00:07]} g5 {[%emt 0:00:48]} 46. a4 {[%emt 0:00:09]} Ka6 {[%emt 0:00:19]} 47. a5 {[%emt 0:00:06]} Kb7 {[%emt 0:00:08]} 48. Kb5 {[%emt 0:00:06]} 1-0

[Event "GER-ch Youth U10 2020"]
[Site "Willingen"]
[Date "2020.10.30"]
[Round "6.13"]
[White "Mandalka, Justus"]
[Black "Meng, Yuxuan"]
[Result "1-0"]
[ECO "B40"]
[WhiteElo "1437"]
[BlackElo "1515"]
[Annotator "NA RC"]
[PlyCount "125"]
[EventDate "2020.10.27"]
[EventType "swiss"]
[EventRounds "7"]
[EventCountry "GER"]
[SourceTitle "playchess.com"]
[Source "ChessBase"]
[SourceQuality "1"]
[TimeControl "40/4500+30:900+30"]

1. e4 {[%emt 0:00:00]} c5 {[%emt 0:00:00]} 2. Nf3 {[%emt 0:00:00]} e6 {[%emt 0:00:00]} 3. c3 {[%emt 0:00:00]} Nf6 {[%emt 0:00:02]} 4. e5 {[%emt 0:00:00]} Nd5 {[%emt 0:00:06]} 5. d4 {[%emt 0:00:00]} cxd4 {[%emt 0:01:24]} 6. cxd4 {[%emt 0:00:06]} Nc6 {[%emt 0:00:25]} 7. Bc4 {[%emt 0:00:17]} Nb6 {[%emt 0:01:55]} 8. Bb3 {[%emt 0:00:30]} h6 {[%emt 0:04:02]} 9. O-O {[%emt 0:01:47]} d6 {[%emt 0:03:18]} 10. Qe2 {[%emt 0:01:20]} d5 {[%emt 0:06:10]} 11. Nc3 {[%emt 0:01:25]} a6 {[%emt 0:07:00]} 12. Bc2 {[%emt 0:03:05]} Bd7 {[%emt 0:04:47]} 13. a3 {[%emt 0:01:49]} Qc7 {[%emt 0:10:22]} 14. Rb1 {[%emt 0:03:42]} Be7 {[%emt 0:02:35]} 15. Rd1 {[%emt 0:02:40]} Nc4 {[%emt 0:06:26]} 16. Na2 {[%emt 0:06:19]} O-O-O {[%emt 0:10:26]} 17. Qd3 {[%emt 0:05:25]} f6 {[%emt 0:02:45]} 18. b3 {[%emt 0:05:17]} Nb6 {[%emt 0:04:28]} 19. Re1 {[%emt 0:02:47]} fxe5 {[%emt 0:02:41]} 20. dxe5 {[%emt 0:02:37]} Rhf8 {[%emt 0:03:27]} 21. Bb2 {[%emt 0:01:02]} Bc5 {[%emt 0:02:05]} 22. b4 {[%emt 0:01:14]} Be7 {[%emt 0:00:47]} 23. Bb3 {[%emt 0:02:32]} Kb8 {[%emt 0:00:49]} 24. Nc3 {[%emt 0:02:14]} Be8 {[%emt 0:02:41]} 25. Ne2 {[%emt 0:00:59]} Bh5 {[%emt 0:01:34]} 26. Ned4 {[%emt 0:01:14]} Nxd4 {[%emt 0:05:43]} 27. Nxd4 {[%emt 0:00:36]} Bg4 {[%emt 0:00:32]} 28. Rec1 {[%emt 0:01:29]} Qd7 {[%emt 0:00:29]} 29. f3 {[%emt 0:00:31]} Bf5 {[%emt 0:00:29]} 30. Nxf5 {[%emt 0:00:04]} Rxf5 {[%emt 0:00:10]} 31. Bd4 {[%emt 0:00:49]} Nc4 {[%emt 0:00:41]} 32. Bxc4 {[%emt 0:00:29]} dxc4 {[%emt 0:00:08]} 33. Rxc4 {[%emt 0:01:07]} b5 {[%emt 0:00:07]} 34. Rc3 {[%emt 0:01:21]} Qxd4+ {[%emt 0:00:07]} 35. Qxd4 {[%emt 0:00:04]} Rxd4 {[%emt 0:00:07]} 36. Rbc1 {[%emt 0:00:11]} Rd7 {[%emt 0:00:37]} 37. Rc6 {[%emt 0:01:23]} Rxe5 {[%emt 0:00:06]} 38. Rxa6 {[%emt 0:00:15]} Kb7 {[%emt 0:00:05]} 39. Rcc6 {[%emt 0:00:40]} Red5 {[%emt 0:00:41]} 40. Rab6+ {[%emt 0:01:10]} Ka8 {[%emt 0:00:34]} 41. Ra6+ {[%emt 0:15:31]} Ra7 {[%emt 0:15:31]} 42. Rxa7+ {[%emt 0:00:05]} Kxa7 {[%emt 0:00:12]} 43. Rc7+ {[%emt 0:00:04]} Kb6 {[%emt 0:00:18]} 44. Rxe7 {[%emt 0:00:08]} Rg5 {[%emt 0:00:55]} 45. Rxe6+ {[%emt 0:00:07]} Kc7 {[%emt 0:00:08]} 46. h4 {[%emt 0:00:37]} Rh5 {[%emt 0:00:20]} 47. Re7+ {[%emt 0:00:17]} Kd6 {[%emt 0:00:12]} 48. Rxg7 {[%emt 0:00:09]} Rxh4 {[%emt 0:00:13]} 49. g3 {[%emt 0:00:11]} Rh5 {[%emt 0:00:29]} 50. Kg2 {[%emt 0:00:08]} Ke6 {[%emt 0:00:26]} 51. g4 {[%emt 0:01:03]} Rg5 {[%emt 0:00:22]} 52. Rb7 {[%emt 0:00:21]} Kf6 {[%emt 0:00:23]} 53. Kg3 {[%emt 0:00:22]} Rd5 {[%emt 0:00:16]} 54. Rb6+ {[%emt 0:00:34]} Kg7 {[%emt 0:00:14]} 55. Kh4 {[%emt 0:00:40]} Re5 {[%emt 0:00:27]} 56. f4 {[%emt 0:00:24]} Rd5 {[%emt 0:00:13]} 57. g5 {[%emt 0:00:20]} hxg5+ {[%emt 0:00:07]} 58. fxg5 {[%emt 0:00:06]} Rd4+ {[%emt 0:00:18]} 59. Kh5 {[%emt 0:00:15]} Rd5 {[%emt 0:00:07]} 60. Rb7+ {[%emt 0:00:17]} Kg8 {[%emt 0:00:39]} 61. Kh6 {[%emt 0:00:24]} Rd6+ {[%emt 0:00:34]} 62. g6 {[%emt 0:00:28]} Rd8 {[%emt 0:00:13]} 63. Rxb5 {[%emt 0:00:28]} 1-0

[Event "GER-ch Youth U10 2020"]
[Site "Willingen"]
[Date "2020.10.30"]
[Round "6.14"]
[White "Geist, Tim"]
[Black "Klasen, Ennio Rodriguez"]
[Result "1-0"]
[ECO "D15"]
[WhiteElo "1578"]
[BlackElo "1297"]
[Annotator "NA RC"]
[PlyCount "103"]
[EventDate "2020.10.27"]
[EventType "swiss"]
[EventRounds "7"]
[EventCountry "GER"]
[SourceTitle "playchess.com"]
[Source "ChessBase"]
[SourceQuality "1"]
[TimeControl "40/4500+30:900+30"]

1. d4 {[%emt 0:00:00]} d5 {[%emt 0:00:21]} 2. Nf3 {[%emt 0:00:00]} c6 {[%emt 0:03:18]} 3. c4 {[%emt 0:00:43]} Nf6 {[%emt 0:01:18]} 4. Nc3 {[%emt 0:00:23]} Bf5 {[%emt 0:01:37]} 5. cxd5 {[%emt 0:00:24]} cxd5 {[%emt 0:00:15]} 6. Qb3 {[%emt 0:00:19]} b6 {[%emt 0:06:47]} 7. Bg5 {[%emt 0:01:20]} e6 {[%emt 0:05:21]} 8. Bxf6 {[%emt 0:00:56]} gxf6 {[%emt 0:01:50]} 9. e3 {[%emt 0:00:49]} Nc6 {[%emt 0:02:56]} 10. Bb5 {[%emt 0:00:36]} Qd7 {[%emt 0:00:45]} 11. O-O {[%emt 0:00:56]} Be7 {[%emt 0:00:37]} 12. Rac1 {[%emt 0:02:11]} Rc8 {[%emt 0:01:28]} 13. Qa4 {[%emt 0:01:25]} Qd6 {[%emt 0:05:39]} 14. Ne2 {[%emt 0:01:18]} Kd7 {[%emt 0:01:26]} 15. Qxa7+ {[%emt 0:01:13]} Rc7 {[%emt 0:01:07]} 16. Qxb6 {[%emt 0:01:20]} Rhc8 {[%emt 0:01:08]} 17. Rc3 {[%emt 0:00:59]} Bd8 {[%emt 0:03:22]} 18. Rfc1 {[%emt 0:01:24]} Be4 {[%emt 0:02:01]} 19. Nd2 {[%emt 0:02:15]} Bf5 {[%emt 0:03:39]} 20. Nb3 {[%emt 0:01:30]} h5 {[%emt 0:16:02]} 21. Na5 {[%emt 0:00:40]} Ke7 {[%emt 0:02:47]} 22. Bxc6 {[%emt 0:01:34]} Kf8 {[%emt 0:02:24]} 23. Nb7 {[%emt 0:01:37]} Qe7 {[%emt 0:01:10]} 24. Nxd8 {[%emt 0:00:15]} Qxd8 {[%emt 0:00:14]} 25. Bb5 {[%emt 0:00:57]} Rxc3 {[%emt 0:01:55]} 26. Qxd8+ {[%emt 0:00:11]} Rxd8 {[%emt 0:00:13]} 27. Rxc3 {[%emt 0:00:15]} Rb8 {[%emt 0:00:34]} 28. a4 {[%emt 0:00:08]} e5 {[%emt 0:01:02]} 29. h4 {[%emt 0:01:02]} e4 {[%emt 0:01:19]} 30. Nf4 {[%emt 0:00:29]} Be6 {[%emt 0:00:28]} 31. Nxh5 {[%emt 0:00:59]} f5 {[%emt 0:00:43]} 32. Nf4 {[%emt 0:00:09]} Kg7 {[%emt 0:00:13]} 33. Rc5 {[%emt 0:00:32]} Rd8 {[%emt 0:00:27]} 34. b4 {[%emt 0:01:09]} Kf6 {[%emt 0:00:33]} 35. Bc6 {[%emt 0:00:24]} Rb8 {[%emt 0:00:21]} 36. b5 {[%emt 0:00:22]} Ke7 {[%emt 0:00:38]} 37. a5 {[%emt 0:00:50]} Kd6 {[%emt 0:00:41]} 38. a6 {[%emt 0:00:41]} Rh8 {[%emt 0:01:56]} 39. a7 {[%emt 0:00:39]} Kc7 {[%emt 0:00:33]} 40. a8=Q {[%emt 0:00:41]} Rxa8 {[%emt 0:00:13]} 41. Bxa8+ {[%emt 0:15:05]} Kb8 {[%emt 0:15:25]} 42. Bxd5 {[%emt 0:00:07]} Bxd5 {[%emt 0:00:14]} 43. Rxd5 {[%emt 0:00:06]} f6 {[%emt 0:00:16]} 44. Rxf5 {[%emt 0:00:03]} Kc7 {[%emt 0:00:14]} 45. Rxf6 {[%emt 0:00:05]} Kc8 {[%emt 0:00:34]} 46. h5 {[%emt 0:00:15]} Kd7 {[%emt 0:00:11]} 47. h6 {[%emt 0:00:05]} Ke7 {[%emt 0:00:13]} 48. Rg6 {[%emt 0:00:05]} Kd7 {[%emt 0:00:22]} 49. h7 {[%emt 0:00:05]} Kc7 {[%emt 0:00:27]} 50. h8=Q {[%emt 0:00:09]} Kb7 {[%emt 0:00:09]} 51. Qh7+ {[%emt 0:00:05]} Kc8 {[%emt 0:00:14]} 52. Rg8# {[%emt 0:00:04]} 1-0

[Event "GER-ch Youth U10 2020"]
[Site "Willingen"]
[Date "2020.10.30"]
[Round "6.15"]
[White "Mohammadzadeh, Daris"]
[Black "Zhang, Yibo"]
[Result "0-1"]
[ECO "C47"]
[WhiteElo "1311"]
[BlackElo "1299"]
[Annotator "NA RC"]
[PlyCount "104"]
[EventDate "2020.10.27"]
[EventType "swiss"]
[EventRounds "7"]
[EventCountry "GER"]
[SourceTitle "playchess.com"]
[Source "ChessBase"]
[SourceQuality "1"]
[TimeControl "40/4500+30:900+30"]

1. e4 {[%emt 0:00:00]} e5 {[%emt 0:00:00]} 2. Nf3 {[%emt 0:00:00]} Nc6 {[%emt 0:00:00]} 3. Nc3 {[%emt 0:00:01]} Nf6 {[%emt 0:00:00]} 4. a3 {[%emt 0:00:27]} Be7 {[%emt 0:00:46]} 5. d4 {[%emt 0:00:34]} exd4 {[%emt 0:02:06]} 6. Nxd4 {[%emt 0:02:30]} d6 {[%emt 0:01:02]} 7. Bb5 {[%emt 0:02:08]} Bd7 {[%emt 0:01:05]} 8. Bxc6 {[%emt 0:00:51]} bxc6 {[%emt 0:00:28]} 9. O-O {[%emt 0:02:06]} O-O {[%emt 0:01:53]} 10. Be3 {[%emt 0:03:36]} Re8 {[%emt 0:02:32]} 11. Qf3 {[%emt 0:05:48]} Rb8 {[%emt 0:04:27]} 12. Rab1 {[%emt 0:02:51]} Qc8 {[%emt 0:02:37]} 13. h3 {[%emt 0:03:06]} c5 {[%emt 0:07:22]} 14. Nf5 {[%emt 0:04:49]} Bf8 {[%emt 0:06:28]} 15. Bg5 {[%emt 0:03:58]} Nxe4 {[%emt 0:03:09]} 16. Nxe4 {[%emt 0:15:03]} Bxf5 {[%emt 0:02:56]} 17. Ng3 {[%emt 0:05:46]} Bxc2 {[%emt 0:01:16]} 18. Rbc1 {[%emt 0:01:19]} Ba4 {[%emt 0:04:33]} 19. Nh5 {[%emt 0:03:54]} Re6 {[%emt 0:16:04]} 20. Qg3 {[%emt 0:06:10]} Rg6 {[%emt 0:00:36]} 21. Nf4 {[%emt 0:01:13]} Rxb2 {[%emt 0:03:29]} 22. Nxg6 {[%emt 0:03:15]} fxg6 {[%emt 0:01:37]} 23. Rfe1 {[%emt 0:02:53]} Qd7 {[%emt 0:03:31]} 24. Re4 {[%emt 0:02:34]} d5 {[%emt 0:01:30]} 25. Re3 {[%emt 0:01:25]} Bd6 {[%emt 0:01:46]} 26. Qf3 {[%emt 0:01:09]} Bc6 {[%emt 0:01:53]} 27. Rce1 {[%emt 0:00:44]} d4 {[%emt 0:02:06]} 28. Re8+ {[%emt 0:01:40]} Qxe8 {[%emt 0:00:24]} 29. Rxe8+ {[%emt 0:00:09]} Bxe8 {[%emt 0:00:04]} 30. Bf4 {[%emt 0:00:42]} Bxf4 {[%emt 0:01:06]} 31. Qxf4 {[%emt 0:00:04]} h6 {[%emt 0:02:53]} 32. Qxc7 {[%emt 0:00:42]} Kh7 {[%emt 0:01:24]} 33. Qd8 {[%emt 0:01:59]} Bb5 {[%emt 0:00:54]} 34. f4 {[%emt 0:03:18]} Rb1+ {[%emt 0:02:34]} 35. Kf2 {[%emt 0:01:19]} Rf1+ {[%emt 0:00:15]} 36. Kg3 {[%emt 0:00:03]} d3 {[%emt 0:00:10]} 37. a4 {[%emt 0:00:38]} Bc4 {[%emt 0:00:48]} 38. h4 {[%emt 0:01:09]} h5 {[%emt 0:00:37]} 39. Qd6 {[%emt 0:01:10]} Ra1 {[%emt 0:00:43]} 40. Qd7 {[%emt 0:01:00]} Ra2 {[%emt 0:00:13]} 41. f5 {[%emt 0:15:08]} d2 {[%emt 0:15:35]} 42. fxg6+ {[%emt 0:00:13]} Kxg6 {[%emt 0:00:38]} 43. Qd6+ {[%emt 0:00:24]} Kh7 {[%emt 0:00:38]} 44. Kf3 {[%emt 0:00:00]} Ra3+ {[%emt 0:00:00]} 45. Kf2 {[%emt 0:00:00]} Rd3 {[%emt 0:00:00]} 46. Qe5 {[%emt 0:00:00]} d1=Q {[%emt 0:00:00]} 47. Qe4+ {[%emt 0:00:00]} Kh8 {[%emt 0:00:00]} 48. Qe8+ {[%emt 0:00:00]} Bg8 {[%emt 0:00:00]} 49. Qxh5+ {[%emt 0:00:00]} Qxh5 {[%emt 0:00:00]} 50. Kg1 {[%emt 0:00:00]} Qe2 {[%emt 0:00:00]} 51. a5 {[%emt 0:00:00]} Bd5 {[%emt 0:00:00]} 52. a6 {[%emt 0:00:00]} Qxg2# {[%emt 0:00:00]} 0-1

[Event "GER-ch Youth U10 2020"]
[Site "Willingen"]
[Date "2020.10.30"]
[Round "6.16"]
[White "Nemitz, Alfred"]
[Black "Stichter, Constantin"]
[Result "0-1"]
[ECO "C00"]
[WhiteElo "1287"]
[BlackElo "1476"]
[Annotator "NA RC"]
[PlyCount "108"]
[EventDate "2020.10.27"]
[EventType "swiss"]
[EventRounds "7"]
[EventCountry "GER"]
[SourceTitle "playchess.com"]
[Source "ChessBase"]
[SourceQuality "1"]
[TimeControl "40/4500+30:900+30"]

1. e4 {[%emt 0:00:40]} e6 {[%emt 0:00:00]} 2. d4 {[%emt 0:00:07]} d5 {[%emt 0:00:00]} 3. Bd3 {[%emt 0:00:20]} Nf6 {[%emt 0:00:25]} 4. e5 {[%emt 0:00:29]} Nfd7 {[%emt 0:00:10]} 5. Nf3 {[%emt 0:05:04]} c5 {[%emt 0:00:40]} 6. c3 {[%emt 0:01:51]} Nc6 {[%emt 0:01:20]} 7. O-O {[%emt 0:03:38]} b6 {[%emt 0:00:17]} 8. Na3 {[%emt 0:05:33]} a6 {[%emt 0:00:31]} 9. Nc2 {[%emt 0:05:54]} Bb7 {[%emt 0:00:13]} 10. a4 {[%emt 0:05:33]} c4 {[%emt 0:00:43]} 11. Be2 {[%emt 0:00:36]} Na5 {[%emt 0:00:10]} 12. Be3 {[%emt 0:01:58]} Nb3 {[%emt 0:00:18]} 13. Ra2 {[%emt 0:01:36]} Nb8 {[%emt 0:00:22]} 14. Na1 {[%emt 0:01:29]} Nxa1 {[%emt 0:00:47]} 15. Rxa1 {[%emt 0:00:40]} Nc6 {[%emt 0:00:30]} 16. Qc2 {[%emt 0:02:52]} Na5 {[%emt 0:00:19]} 17. Nd2 {[%emt 0:00:07]} Bc6 {[%emt 0:00:43]} 18. h3 {[%emt 0:06:11]} Be7 {[%emt 0:01:12]} 19. f4 {[%emt 0:00:45]} g6 {[%emt 0:00:35]} 20. Bf3 {[%emt 0:04:11]} Kd7 {[%emt 0:01:00]} 21. g3 {[%emt 0:05:09]} h5 {[%emt 0:00:39]} 22. Bg2 {[%emt 0:01:10]} Qc7 {[%emt 0:02:40]} 23. Rf2 {[%emt 0:05:35]} Kc8 {[%emt 0:01:05]} 24. h4 {[%emt 0:00:47]} Kb7 {[%emt 0:00:45]} 25. Rff1 {[%emt 0:02:27]} Ka7 {[%emt 0:01:07]} 26. Bf2 {[%emt 0:03:34]} Rab8 {[%emt 0:01:24]} 27. Qd1 {[%emt 0:05:17]} b5 {[%emt 0:00:30]} 28. axb5 {[%emt 0:00:57]} Rxb5 {[%emt 0:02:14]} 29. Rb1 {[%emt 0:01:59]} Rhb8 {[%emt 0:02:07]} 30. Qc2 {[%emt 0:00:25]} Qb6 {[%emt 0:00:14]} 31. Rfd1 {[%emt 0:04:32]} Rxb2 {[%emt 0:00:14]} 32. Rxb2 {[%emt 0:00:13]} Qxb2 {[%emt 0:00:06]} 33. Qxb2 {[%emt 0:00:32]} Rxb2 {[%emt 0:00:05]} 34. Kf1 {[%emt 0:00:17]} Ra2 {[%emt 0:00:47]} 35. Ke1 {[%emt 0:01:04]} Ba3 {[%emt 0:00:54]} 36. Bf1 {[%emt 0:00:32]} Bb2 {[%emt 0:00:49]} 37. Nb1 {[%emt 0:00:46]} Nb3 {[%emt 0:00:56]} 38. Bxc4 {[%emt 0:00:13]} Ba4 {[%emt 0:03:23]} 39. Bxb3 {[%emt 0:01:26]} Bxb3 {[%emt 0:00:47]} 40. Rd2 {[%emt 0:01:00]} a5 {[%emt 0:00:48]} 41. Ke2 {[%emt 0:17:33]} a4 {[%emt 0:15:13]} 42. Kf3 {[%emt 0:01:36]} a3 {[%emt 0:00:41]} 43. Nxa3 {[%emt 0:00:29]} Bxa3 {[%emt 0:00:22]} 44. Rxa2 {[%emt 0:00:05]} Bxa2 {[%emt 0:00:14]} 45. g4 {[%emt 0:00:25]} Kb7 {[%emt 0:03:52]} 46. gxh5 {[%emt 0:00:24]} gxh5 {[%emt 0:00:08]} 47. Be1 {[%emt 0:02:37]} Bb1 {[%emt 0:00:30]} 48. Ke2 {[%emt 0:00:39]} Bc1 {[%emt 0:00:35]} 49. Bg3 {[%emt 0:00:17]} Bc2 {[%emt 0:00:12]} 50. Bh2 {[%emt 0:00:00]} Kb6 {[%emt 0:00:00]} 51. Kf3 {[%emt 0:00:00]} Kb5 {[%emt 0:00:00]} 52. Bg1 {[%emt 0:00:00]} Kc4 {[%emt 0:00:00]} 53. Bf2 {[%emt 0:00:00]} Kxc3 {[%emt 0:00:00]} 54. Ke2 {[%emt 0:00:00]} Bxf4 {[%emt 0:00:00]} 0-1